bitfinex/quotes_SOLUSD_20240717
["timestamp","ask_amount","ask_price","bid_price","bid_amount"]
[1721245047560,20.0,157.36,157.3,12.4226]
[1721245047561,6.3563,157.33,157.3,6.0655]
[1721245047763,6.3558,157.34,157.32,15.57]
[1721245048471,20.0,157.36,157.32,15.57]
[1721245048472,6.356,157.33,157.32,15.57]
[1721245048674,6.356,157.33,157.29,15.8455]
[1721245048675,6.356,157.33,157.31,15.57]
[1721245049260,15.8884,157.35,157.26,6.1557]
[1721245049458,6.3573,157.3,157.28,15.57]
[1721245050267,16.0584,157.35,157.28,15.57]
[1721245050268,6.3569,157.31,157.28,15.57]
[1721245050454,20.0,157.3,157.28,15.57]
[1721245050659,26.3574,157.3,157.28,15.57]
[1721245051168,20.0,157.3,157.29,15.57]
[1721245051469,26.3572,157.3,157.28,15.57]
[1721245051677,26.3572,157.3,157.27,15.57]
[1721245051881,20.0,157.3,157.27,15.57]
[1721245052175,20.0,157.3,157.29,15.57]
[1721245055577,6.3566,157.32,157.29,15.57]
[1721245055772,20.0,157.31,157.3,1.27131445]
[1721245055959,20.0,157.31,157.3,15.57]
[1721245056781,6.3572,157.3,157.29,15.57]
[1721245056950,26.3572,157.31,157.29,15.57]
[1721245057153,26.3572,157.31,157.3,15.57]
[1721245057154,20.0,157.31,157.3,15.57]
[1721245057887,20.0,157.31,157.29,15.57]
[1721245059459,26.357,157.31,157.29,15.57]
[1721245059781,26.357,157.31,157.28,15.57]
[1721245060574,20.0,157.31,157.28,15.57]
[1721245060884,20.0,157.31,157.28,21.928]
[1721245061188,20.0,157.31,157.29,15.57]
[1721245061497,26.3565,157.32,157.29,15.57]
[1721245062357,20.0,157.32,157.26,15.8966]
[1721245062567,20.0,157.34,157.27,15.57]
[1721245062771,16.0606,157.33,157.26,15.57]
[1721245063088,6.3578,157.29,157.26,15.57]
[1721245063256,6.3574,157.3,157.26,15.57]
[1721245063588,26.3577,157.29,157.27,15.57]
[1721245063958,20.0,157.29,157.27,15.57]
[1721245064283,20.0,157.29,157.28,15.57]
[1721245066698,20.0,157.29,157.27,15.57]
[1721245066876,20.0,157.3,157.27,15.57]
[1721245067383,20.0,157.3,157.28,15.57]
[1721245067688,20.0,157.3,157.29,15.57]
[1721245070202,26.3572,157.3,157.29,15.57]
[1721245070400,20.0,157.3,157.29,15.57]
[1721245070694,26.3572,157.3,157.28,15.57]
[1721245070899,26.3572,157.3,157.26,22.2558]
[1721245070900,20.0,157.3,157.29,15.57]
[1721245071299,20.0,157.3,157.28,15.57]
[1721245071796,20.0,157.3,157.29,15.57]
[1721245071988,20.0,157.3,157.29,16.84142136]
[1721245073782,26.3572,157.3,157.28,15.57]
[1721245074286,20.0,157.3,157.28,15.57]
[1721245074483,20.0,157.3,157.29,16.84140089]
[1721245074678,20.0,157.3,157.29,15.57]
[1721245075698,20.0,157.3,157.29,16.84139687]
[1721245077209,20.0,157.3,157.29,15.57]
[1721245077387,6.3568,157.31,157.29,15.57]
[1721245077705,6.3568,157.31,157.3,15.57]
[1721245077898,26.3568,157.31,157.3,15.57]
[1721245078701,6.3568,157.31,157.3,15.57]
[1721245079814,6.3566,157.32,157.3,15.57]
[1721245080311,6.3566,157.32,157.29,15.57]
[1721245083137,15.8859,157.38,157.31,15.57]
[1721245083318,15.8859,157.38,157.3,1.27133129]
[1721245083319,6.3542,157.38,157.34,15.57]
[1721245083494,6.3544,157.37,157.35,15.57]
[1721245085414,6.3541,157.38,157.35,15.57]
[1721245085609,20.0,157.37,157.35,15.57]
[1721245085814,20.0,157.37,157.36,15.57]
[1721245087297,26.1331455,157.44,157.36,15.57]
[1721245087298,6.3533,157.4,157.36,15.57]
[1721245087497,26.1331455,157.44,157.38,15.57]
[1721245087498,6.3536,157.39,157.38,15.57]
[1721245087708,6.3536,157.39,157.37,15.57]
[1721245091197,6.3532,157.4,157.37,15.57]
[1721245091392,20.0,157.39,157.37,15.57]
[1721245092208,20.0,157.39,157.36,15.57]
[1721245092611,20.0,157.39,157.36,21.9248]
[1721245094422,26.3537,157.39,157.35,15.57]
[1721245095398,20.0,157.39,157.36,6.3548]
[1721245095803,20.0,157.39,157.36,21.9248]
[1721245096006,20.0,157.39,157.36,15.57]
[1721245096207,26.3537,157.39,157.36,15.57]
[1721245096404,20.0,157.39,157.31,15.8914]
[1721245096628,6.3543,157.38,157.33,21.9257]
[1721245096821,20.0,157.37,157.33,21.9257]
[1721245097030,26.3544,157.37,157.33,21.9257]
[1721245099036,20.0,157.37,157.34,6.3556]
[1721245099406,20.0,157.37,157.33,15.57]
[1721245099613,6.3563,157.33,157.27,15.8954]
[1721245099939,20.0,157.32,157.29,15.57]
[1721245100108,20.0,157.32,157.29,21.9273]
[1721245100435,20.0,157.32,157.3,15.57]
[1721245100634,20.0,157.33,157.3,15.57]
[1721245101143,20.0,157.33,157.3,21.9271]
[1721245101430,26.3556,157.34,157.3,15.57]
[1721245101629,20.0,157.34,157.3,15.57]
[1721245101816,6.3561,157.33,157.29,15.57]
[1721245102022,20.0,157.32,157.3,6.357]
[1721245102238,20.0,157.32,157.31,15.57]
[1721245102443,20.0,157.32,157.31,21.9268]
[1721245103128,25.3203,157.4,157.32,6.3562]
[1721245103330,6.3552,157.36,157.33,15.57]
[1721245103633,20.0,157.35,157.33,15.57]
[1721245104430,20.0,157.35,157.32,16.84109947]
[1721245104636,20.0,157.35,157.32,15.57]
[1721245104844,20.0,157.35,157.33,1.27109603]
[1721245105047,6.3547,157.37,157.33,16.84109603]
[1721245105048,20.0,157.36,157.33,16.84109603]
[1721245105738,26.3549,157.36,157.33,16.84109603]
[1721245106052,26.3549,157.36,157.33,15.57]
[1721245106552,0.8167455,157.44,157.35,15.57]
[1721245106755,0.8167455,157.44,157.39,15.57]
[1721245107049,6.3528,157.41,157.38,15.57]
[1721245107648,6.3525,157.42,157.4,15.57]
[1721245108012,6.3525,157.42,157.39,15.57]
[1721245108618,20.0,157.41,157.39,15.57]
[1721245109749,20.0,157.42,157.39,15.57]
[1721245110120,20.0,157.42,157.39,16.84050272]
[1721245110550,20.0,157.42,157.4,1.27050349]
[1721245110750,26.3526,157.42,157.39,16.84050609]
[1721245110936,6.3529,157.41,157.39,15.57]
[1721245111127,20.0,157.4,157.39,15.57]
[1721245111526,20.0,157.4,157.38,15.57]
[1721245112050,20.0,157.4,157.39,15.57]
[1721245114234,20.0,157.4,157.36,60.57]
[1721245114235,26.3532,157.4,157.36,6.3547]
[1721245114452,26.3532,157.4,157.37,15.57]
[1721245116037,20.0,157.4,157.37,21.9244]
[1721245116549,20.0,157.4,157.38,15.57]
[1721245116958,20.0,157.4,157.39,15.57]
[1721245117845,20.0,157.4,157.38,15.57]
[1721245118156,20.0,157.4,157.39,15.57]
[1721245120737,20.0,157.4,157.38,15.57]
[1721245122140,20.0,157.4,157.39,15.57]
[1721245123058,7.1686455,157.44,157.39,21.9233]
[1721245123235,7.1686455,157.44,157.4,15.57]
[1721245123635,6.3521,157.43,157.4,15.57]
[1721245124253,20.0,157.42,157.4,15.57]
[1721245126459,20.0,157.42,157.4,21.9231]
[1721245126764,0.8167455,157.44,157.41,15.57]
[1721245126941,6.352,157.43,157.41,15.57]
[1721245127263,20.0,157.42,157.41,15.57]
[1721245127439,20.0,157.42,157.4,15.57]
[1721245128355,7.1684455,157.44,157.4,15.57]
[1721245128356,20.0,157.43,157.41,15.57]
[1721245129155,0.8167455,157.44,157.42,21.9224]
[1721245129156,20.8167455,157.44,157.42,21.9224]
[1721245129363,0.8167455,157.44,157.43,6.352]
[1721245129560,0.8167455,157.44,157.43,15.57]
[1721245132372,0.8167455,157.44,157.43,23.19228678]
[1721245132864,0.8167455,157.44,157.43,16.84028678]
[1721245133043,0.8167455,157.44,157.43,15.57]
[1721245134067,0.8167455,157.44,157.42,15.57]
[1721245134941,7.1684455,157.44,157.42,15.57]
[1721245136244,0.8167455,157.44,157.42,15.57]
[1721245137351,0.8167455,157.44,157.42,21.9224]
[1721245137973,0.8167455,157.44,157.43,15.57]
[1721245140384,0.8167455,157.44,157.42,15.57]
[1721245141775,0.8167455,157.44,157.42,21.9223]
[1721245143781,0.8167455,157.44,157.43,15.57]
[1721245145065,0.8167455,157.44,157.43,21.922]
[1721245145580,0.8167455,157.44,157.43,15.57]
[1721245147875,0.8167455,157.44,157.42,7.6227055]
[1721245147876,0.8167455,157.44,157.42,6.3523]
[1721245148088,0.8167455,157.44,157.43,15.57]
[1721245150567,0.8167455,157.44,157.43,21.922]
[1721245153057,0.8167455,157.44,157.41,15.8818]
[1721245153279,0.8167455,157.44,157.43,15.57]
[1721245158482,0.8167455,157.44,157.43,16.84031442]
[1721245159795,0.8167455,157.44,157.41,22.2345]
[1721245159966,0.8167455,157.44,157.43,15.57]
[1721245160567,0.8167455,157.44,157.42,15.57]
[1721245161896,0.8167455,157.44,157.39,22.8318]
[1721245162071,6.3521,157.43,157.41,15.57]
[1721245162474,0.8167455,157.44,157.42,21.9223]
[1721245162684,0.8167455,157.44,157.43,22.232]
[1721245162890,0.8167455,157.44,157.43,82.802]
[1721245163084,0.8167455,157.44,157.43,37.802]
[1721245164778,0.8167455,157.44,157.43,31.45]
[1721245164972,0.8167455,157.44,157.43,37.802]
[1721245167088,0.8167455,157.44,157.43,82.802]
[1721245167873,6.3484,157.52,157.47,6.3503]
[1721245168110,154.24179947,157.56,157.51,31.14]
[1721245168274,154.24179947,157.56,157.52,69.89755864]
[1721245168470,154.24179947,157.56,157.55,15.57]
[1721245173789,154.24179947,157.56,157.54,6.3473]
[1721245174095,154.24179947,157.56,157.55,21.9171]
[1721245175903,154.24179947,157.56,157.55,6.3471]
[1721245176092,154.24179947,157.56,157.55,21.9171]
[1721245177079,154.24179947,157.56,157.55,66.9171]
[1721245177285,154.24179947,157.56,157.55,73.5433]
[1721245178105,154.24179947,157.56,157.55,74.81249615]
[1721245179804,10.2531,157.69,157.59,6.3455]
[1721245180101,10.2531,157.69,157.59,21.9155]
[1721245180484,10.2531,157.69,157.59,23.1845336]
[1721245180679,10.2531,157.69,157.59,21.9155]
[1721245181195,10.2531,157.69,157.59,15.57]
[1721245182078,10.2531,157.69,157.59,21.9155]
[1721245182278,10.2531,157.69,157.59,23.18445283]
[1721245182479,10.2531,157.64,157.58,15.8642]
[1721245182702,10.2531,157.64,157.58,21.9156]
[1721245183083,10.2531,157.64,157.59,15.57]
[1721245183695,10.2531,157.64,157.57,22.2114]
[1721245183901,10.2531,157.64,157.59,15.57]
[1721245184211,10.2531,157.64,157.59,21.9155]
[1721245185107,10.2531,157.68,157.59,21.9155]
[1721245185899,10.2531,157.68,157.59,15.57]
[1721245186402,10.2531,157.68,157.58,15.57]
[1721245186590,10.2531,157.68,157.58,21.9159]
[1721245187090,10.2531,157.68,157.58,6.3459]
[1721245187289,10.2531,157.68,157.58,21.9159]
[1721245187817,10.2531,157.68,157.59,15.57]
[1721245188618,10.2531,157.68,157.59,21.9155]
[1721245190317,10.2531,157.68,157.58,21.9159]
[1721245190495,11.00663863,157.67,157.58,21.9159]
[1721245191322,11.00663863,157.67,157.54,31.3241]
[1721245191619,0.17,157.59,157.54,31.4386]
[1721245192598,0.17,157.59,157.55,15.57]
[1721245192786,0.17,157.59,157.57,6.3463]
[1721245193400,10.2531,157.62,157.57,15.57]
[1721245193592,10.2531,157.62,157.58,15.57]
[1721245193905,10.2531,157.66,157.59,21.9155]
[1721245194900,10.2531,157.66,157.59,65.654791]
[1721245195596,10.2531,157.66,157.59,21.9155]
[1721245197417,10.2531,157.66,157.59,6.3455]
[1721245198902,10.2531,157.66,157.56,6.3464]
[1721245199101,0.17,157.61,157.55,15.8675]
[1721245199321,6.5156,157.59,157.55,22.2145]
[1721245199929,6.5156,157.59,157.55,15.8675]
[1721245200416,6.5156,157.59,157.55,22.2144]
[1721245200417,0.17,157.59,157.55,22.2144]
[1721245200626,0.17,157.59,157.56,6.3466]
[1721245200832,0.17,157.59,157.55,22.2145]
[1721245201925,0.17,157.59,157.56,6.3467]
[1721245202223,154.41179947,157.59,157.56,6.3467]
[1721245203245,154.41179947,157.59,157.57,6.3463]
[1721245204230,160.75739947,157.59,157.55,22.2146]
[1721245204405,154.41179947,157.59,157.56,6.3467]
[1721245205434,154.41179947,157.59,157.53,6.3479]
[1721245205729,6.346,157.58,157.53,6.3479]
[1721245206028,0.17,157.57,157.53,6.3479]
[1721245206627,0.17,157.57,157.52,15.8703]
[1721245206840,0.17,157.58,157.52,15.8703]
[1721245207209,6.3472,157.55,157.52,15.8703]
[1721245207433,0.17,157.54,157.52,15.8703]
[1721245207746,0.17,157.54,157.52,22.2186]
[1721245208038,0.17,157.55,157.52,22.2186]
[1721245208536,0.17,157.55,157.52,15.8703]
[1721245209438,0.17,157.55,157.46,15.0031]
[1721245209439,6.3482,157.53,157.48,6.3497]
[1721245209612,0.17,157.52,157.46,15.8763]
[1721245209809,6.3493,157.5,157.46,15.8763]
[1721245210437,0.17,157.49,157.46,15.8763]
[1721245210724,6.5197,157.49,157.46,15.8763]
[1721245211837,6.5197,157.49,157.45,6.3511]
[1721245212333,0.17,157.49,157.45,6.3511]
[1721245213124,0.17,157.49,157.45,15.8776]
[1721245213428,0.17,157.5,157.45,15.8776]
[1721245214416,6.5192,157.5,157.45,15.8776]
[1721245215124,6.3497,157.49,157.45,22.2287]
[1721245215934,6.5193,157.5,157.45,22.2287]
[1721245216441,6.3496,157.49,157.45,22.2287]
[1721245218052,0.17,157.5,157.42,15.8803]
[1721245218215,6.351,157.46,157.42,22.2326]
[1721245218415,0.17,157.45,157.42,22.2326]
[1721245219525,0.17,157.46,157.42,22.2326]
[1721245219835,0.17,157.46,157.43,6.3518]
[1721245220048,0.17,157.46,157.44,6.3514]
[1721245220213,0.17,157.47,157.44,6.3514]
[1721245220422,0.17,157.47,157.44,15.8783]
[1721245220624,6.3491,157.51,157.47,6.3503]
[1721245221119,6.3485,157.52,157.47,6.3503]
[1721245221735,6.349,157.51,157.46,22.2272]
[1721245222339,6.3495,157.5,157.46,15.8765]
[1721245222720,6.3496,157.49,157.46,15.8765]
[1721245222940,6.3492,157.5,157.46,22.2273]
[1721245223271,6.3487,157.52,157.47,6.3503]
[1721245223434,0.17,157.51,157.47,6.3503]
[1721245223938,6.5189,157.51,157.47,6.3503]
[1721245224531,0.17,157.51,157.46,22.2271]
[1721245224837,6.3492,157.5,157.46,22.2271]
[1721245225957,6.5189,157.51,157.47,6.3502]
[1721245226442,0.17,157.51,157.46,15.8765]
[1721245226843,6.3497,157.49,157.46,15.8765]
[1721245227042,0.17,157.48,157.46,15.8765]
[1721245227615,0.17,157.49,157.46,15.8765]
[1721245228038,10.2531,157.54,157.46,14.87013676]
[1721245228220,0.17,157.53,157.48,6.3496]
[1721245228563,0.17,157.53,157.46,21.22073676]
[1721245228718,6.3491,157.51,157.47,6.3503]
[1721245228918,0.17,157.5,157.47,6.3503]
[1721245231043,0.17,157.51,157.47,6.3503]
[1721245231642,0.17,157.51,157.49,6.3492]
[1721245231955,0.17,157.52,157.49,6.3492]
[1721245232333,0.17,157.52,157.5,6.349]
[1721245232534,0.17,157.53,157.5,6.349]
[1721245232956,26.1183,157.58,157.5,15.8724]
[1721245233275,6.3476,157.54,157.5,22.2216]
[1721245234052,6.3476,157.54,157.5,15.8724]
[1721245234262,0.17,157.53,157.5,15.8724]
[1721245234435,6.518,157.53,157.5,15.8724]
[1721245236263,0.17,157.53,157.5,15.8724]
[1721245236951,0.17,157.53,157.5,22.2215]
[1721245239358,6.518,157.53,157.49,6.3495]
[1721245239737,6.3484,157.52,157.48,6.3498]
[1721245240068,0.17,157.51,157.48,6.3498]
[1721245241053,6.3494,157.5,157.45,6.306]
[1721245241240,0.17,157.51,157.44,15.8784]
[1721245241570,6.35,157.48,157.44,15.8784]
[1721245241735,0.17,157.47,157.44,22.23]
[1721245245760,0.17,157.47,157.41,6.3952]
[1721245245761,6.5204,157.47,157.41,22.2766]
[1721245245972,6.3509,157.46,157.41,22.2766]
[1721245246266,0.17,157.45,157.41,15.8814]
[1721245246560,6.5212,157.45,157.41,22.2341]
[1721245247064,6.5213,157.45,157.4,6.3531]
[1721245249160,6.3519,157.44,157.39,6.3535]
[1721245249463,0.17,157.43,157.39,6.3535]
[1721245249760,6.522,157.43,157.39,6.3535]
[1721245249959,6.522,157.43,157.38,15.8843]
[1721245249960,6.3525,157.42,157.38,15.8843]
[1721245250271,0.17,157.41,157.38,22.2382]
[1721245250968,0.17,157.42,157.38,22.2382]
[1721245251169,0.17,157.42,157.38,15.8843]
[1721245251170,6.5226,157.42,157.38,15.8843]
[1721245252273,6.5226,157.42,157.38,22.2382]
[1721245253072,10.2531,157.45,157.39,6.3535]
[1721245253293,6.3519,157.44,157.39,6.3535]
[1721245253448,6.3519,157.44,157.4,6.3531]
[1721245253653,16.6046,157.45,157.4,6.3531]
[1721245253970,6.3517,157.44,157.39,6.3536]
[1721245254688,0.17,157.43,157.39,6.3536]
[1721245255051,0.17,157.43,157.4,6.3531]
[1721245255747,6.3513,157.45,157.41,6.3527]
[1721245256076,6.3508,157.46,157.41,6.3527]
[1721245256284,12.99190189,157.48,157.42,6.3524]
[1721245256461,6.3507,157.47,157.42,6.3524]
[1721245256670,10.2531,157.49,157.42,6.3524]
[1721245256671,6.35,157.48,157.44,6.3515]
[1721245256968,6.35,157.48,157.42,15.8803]
[1721245256969,6.35,157.48,157.43,6.3519]
[1721245257385,6.3497,157.49,157.44,6.3515]
[1721245257579,6.3497,157.49,157.45,6.351]
[1721245258561,16.8931685,157.53,157.47,6.3503]
[1721245258562,6.3489,157.51,157.47,6.3503]
[1721245258781,6.3484,157.52,157.47,6.3503]
[1721245259557,6.3488,157.51,157.47,6.3503]
[1721245260087,0.17,157.5,157.47,6.3503]
[1721245260955,0.17,157.51,157.46,22.2272]
[1721245261769,6.5188,157.51,157.47,6.3503]
[1721245262366,6.3493,157.5,157.46,22.2271]
[1721245262766,6.5189,157.51,157.46,22.2271]
[1721245263384,0.17,157.51,157.48,15.8746]
[1721245263589,6.3483,157.53,157.49,6.3494]
[1721245264684,6.3484,157.52,157.48,22.2244]
[1721245265185,6.3495,157.5,157.45,22.2284]
[1721245265364,6.3495,157.5,157.46,6.3507]
[1721245265365,0.17,157.49,157.46,6.3507]
[1721245265984,0.17,157.49,157.45,22.2285]
[1721245269180,6.3501,157.48,157.44,6.3515]
[1721245270096,6.5197,157.49,157.45,6.3511]
[1721245270394,0.17,157.49,157.44,6.3516]
[1721245270778,6.5197,157.49,157.45,6.3511]
[1721245272074,6.5197,157.49,157.44,15.8786]
[1721245272676,6.5197,157.49,157.44,22.2301]
[1721245272872,6.3501,157.48,157.44,22.2301]
[1721245273176,0.17,157.47,157.44,22.2301]
[1721245273585,0.17,157.47,157.41,15.8816]
[1721245273985,6.3513,157.45,157.41,22.2341]
[1721245274187,0.17,157.44,157.41,22.2341]
[1721245274487,0.17,157.44,157.42,6.3523]
[1721245274698,0.17,157.44,157.41,15.8816]
[1721245274997,0.17,157.45,157.42,6.3523]
[1721245275494,0.17,157.45,157.43,6.3518]
[1721245277703,0.17,157.46,157.43,6.3519]
[1721245278609,0.17,157.46,157.42,6.3523]
[1721245280076,6.5209,157.46,157.42,6.3523]
[1721245281584,6.3513,157.45,157.41,22.2343]
[1721245281899,0.17,157.44,157.41,22.2343]
[1721245283338,6.64253646,157.5,157.41,15.8816]
[1721245283501,6.3503,157.48,157.43,6.3518]
[1721245283710,0.17,157.47,157.43,6.3518]
[1721245284011,0.17,157.47,157.44,6.3516]
[1721245284211,6.64253646,157.5,157.47,6.35]
[1721245284413,259.2,157.54,157.46,15.8761]
[1721245284581,6.3494,157.5,157.46,15.8761]
[1721245284907,6.3496,157.49,157.46,15.8761]
[1721245285085,6.64052436,157.53,157.46,15.8761]
[1721245285086,6.3492,157.5,157.46,22.2269]
[1721245285291,6.3491,157.51,157.47,6.3503]
[1721245285810,6.3491,157.51,157.46,22.2268]
[1721245285995,6.3494,157.5,157.46,15.8761]
[1721245286208,6.3496,157.49,157.46,15.8761]
[1721245286398,0.17,157.48,157.46,15.8761]
[1721245287094,0.17,157.48,157.46,22.2269]
[1721245287288,0.17,157.49,157.46,22.2269]
[1721245288186,0.17,157.49,157.43,15.8799]
[1721245288389,6.35,157.48,157.44,6.3513]
[1721245288605,0.17,157.47,157.44,6.3513]
[1721245289219,0.17,157.48,157.44,6.3513]
[1721245289514,6.52,157.48,157.44,6.3513]
[1721245290030,6.3504,157.47,157.43,22.2318]
[1721245290212,0.17,157.46,157.43,22.2318]
[1721245291804,0.17,157.47,157.44,6.3516]
[1721245291994,0.17,157.47,157.43,15.8799]
[1721245292202,0.17,157.48,157.43,15.8799]
[1721245292818,6.52,157.48,157.44,6.3514]
[1721245299234,6.3504,157.47,157.43,22.2317]
[1721245299538,0.17,157.46,157.43,22.2317]
[1721245299905,0.17,157.46,157.44,6.3516]
[1721245300204,0.17,157.47,157.44,6.3516]
[1721245305110,275.0698,157.54,157.45,15.8778]
[1721245305310,6.3487,157.52,157.47,6.3502]
[1721245305615,6.3489,157.51,157.45,15.8778]
[1721245306123,6.3489,157.51,157.46,6.3506]
[1721245306706,6.5192,157.5,157.46,6.3506]
[1721245307214,6.3486,157.52,157.47,15.8757]
[1721245307415,6.3488,157.51,157.47,22.2258]
[1721245307716,265.5477,157.54,157.49,6.3492]
[1721245308839,265.5476,157.54,157.49,6.3492]
[1721245309037,259.2,157.54,157.5,6.3491]
[1721245310241,0.17,157.53,157.5,6.3491]
[1721245313538,259.2,157.54,157.51,15.8713]
[1721245313721,259.2,157.54,157.53,6.3479]
[1721245314820,259.2,157.54,157.51,15.8713]
[1721245314821,259.2,157.54,157.52,6.3482]
[1721245315240,259.2,157.54,157.51,15.8713]
[1721245315539,259.2,157.54,157.51,22.22]
[1721245318940,259.2,157.54,157.52,6.3483]
[1721245319428,259.2,157.54,157.51,22.2199]
[1721245321446,259.2,157.54,157.52,6.3483]
[1721245321644,259.2,157.54,157.53,6.3479]
[1721245324749,259.2,157.54,157.52,6.3483]
[1721245325741,259.2,157.54,157.53,6.3479]
[1721245328219,259.2,157.54,157.52,6.3482]
[1721245328417,259.2,157.54,157.53,6.3479]
[1721245332444,259.2,157.54,157.51,15.8713]
[1721245332946,259.2,157.54,157.53,6.3479]
[1721245343737,154.24179947,157.59,157.56,6.3466]
[1721245345255,0.17,157.58,157.56,6.3466]
[1721245346463,0.17,157.58,157.55,22.2147]
[1721245349254,0.17,157.58,157.53,22.4439]
[1721245349457,6.348,157.53,157.49,22.2226]
[1721245349684,16.0355,157.58,157.5,6.3489]
[1721245349841,6.3472,157.55,157.51,6.3487]
[1721245350043,0.17,157.54,157.52,6.3483]
[1721245350260,0.17,157.56,157.47,22.124]
[1721245350483,10.4231,157.56,157.48,15.8745]
[1721245350771,10.4231,157.56,157.48,22.2244]
[1721245350937,6.3484,157.52,157.48,22.2244]
[1721245351142,0.17,157.51,157.48,22.2244]
[1721245351362,0.17,157.51,157.48,15.8745]
[1721245351950,0.17,157.51,157.48,22.2244]
[1721245352350,0.17,157.52,157.48,22.2244]
[1721245353357,0.17,157.52,157.49,6.3495]
[1721245353552,0.17,157.53,157.49,6.3495]
[1721245354059,0.17,157.53,157.5,6.349]
[1721245354250,0.17,157.54,157.5,6.349]
[1721245354453,6.5176,157.54,157.5,6.349]
[1721245354653,0.17,157.54,157.5,6.349]
[1721245355361,6.5177,157.54,157.5,6.349]
[1721245355860,6.5177,157.54,157.49,6.3494]
[1721245356568,6.5177,157.54,157.5,6.3491]
[1721245356569,0.17,157.54,157.5,6.3491]
[1721245356763,0.17,157.54,157.51,6.3487]
[1721245357152,6.3482,157.53,157.48,31.3845]
[1721245357369,6.5176,157.54,157.49,6.3494]
[1721245357570,6.5176,157.54,157.49,7.61919936]
[1721245357883,6.5176,157.54,157.5,6.3491]
[1721245358252,0.17,157.54,157.5,6.3491]
[1721245358454,0.17,157.55,157.51,6.3487]
[1721245359457,6.5172,157.55,157.5,21.8591]
[1721245360054,6.3476,157.54,157.5,21.8591]
[1721245360372,0.17,157.55,157.51,6.3484]
[1721245360678,160.87949243,157.59,157.52,15.8705]
[1721245360854,6.3464,157.57,157.53,6.3476]
[1721245361061,6.3467,157.56,157.52,22.2188]
[1721245362377,154.24179947,157.59,157.52,22.2188]
[1721245362378,6.3465,157.57,157.52,22.2188]
[1721245362579,6.3465,157.57,157.53,6.3479]
[1721245363782,6.516,157.58,157.53,6.3479]
[1721245364355,6.3464,157.57,157.53,6.3479]
[1721245364774,6.5161,157.58,157.53,6.3479]
[1721245366076,6.3465,157.57,157.53,6.3479]
[1721245367073,6.347,157.56,157.52,22.2187]
[1721245367880,6.3465,157.57,157.53,6.3479]
[1721245368283,6.5161,157.58,157.53,6.3479]
[1721245368463,6.5161,157.58,157.52,31.3805]
[1721245368464,6.5161,157.58,157.54,6.3475]
[1721245369372,6.3465,157.57,157.53,6.3478]
[1721245370277,6.516,157.58,157.54,6.3473]
[1721245373988,0.17,157.58,157.55,6.3471]
[1721245378288,6.5159,157.58,157.55,6.3471]
[1721245379093,0.17,157.58,157.55,6.3471]
[1721245379782,0.17,157.58,157.54,28.3306]
[1721245379783,6.516,157.58,157.54,28.3306]
[1721245379980,6.3464,157.57,157.54,15.8687]